[Event "5th CNE NED-ch Rapid 2019"]
[Site "Amstelveen"]
[Date "2019.12.01"]
[Round "6.1"]
[White "Ernst, Sipke"]
[Black "Smeets, Jan"]
[Result "1/2-1/2"]
[ECO "D11"]
[WhiteElo "2553"]
[BlackElo "2596"]
[Annotator "ChessBase"]
[PlyCount "268"]
[EventDate "2019.11.30"]
[EventType "tourn"]
[EventCountry "NED"]
[SourceTitle "playchess.com"]
[Source "ChessBase"]
[SourceQuality "1"]
[TimeControl "900+10"]

1. d4 {[%emt 0:00:00]} d5 {[%emt 0:00:00]} 2. c4 {[%emt 0:00:00]} c6 {[%emt 0:00:00]} 3. Nf3 {[%emt 0:00:00]} Nf6 {[%emt 0:00:00]} 4. Nbd2 {[%emt 0:00:06]} Bf5 {[%emt 0:01:04]} 5. Nh4 {[%emt 0:00:02]} Be6 {[%emt 0:02:01]} 6. e3 {[%emt 0:00:44]} g6 {[%emt 0:00:01]} 7. Qb3 {[%emt 0:00:24]} Qc7 {[%emt 0:00:49]} 8. Nhf3 {[%emt 0:00:21]} Bg7 {[%emt 0:00:10]} 9. Bd3 {[%emt 0:00:43]} O-O {[%emt 0:00:53]} 10. Qc2 {[%emt 0:00:28]} dxc4 {[%emt 0:01:06]} 11. Nxc4 {[%emt 0:00:30]} c5 {[%emt 0:00:06]} 12. Nce5 {[%emt 0:00:29]} Nbd7 {[%emt 0:03:19]} 13. Bd2 {[%emt 0:00:23]} Nxe5 {[%emt 0:00:52]} 14. Nxe5 {[%emt 0:00:22]} Rac8 {[%emt 0:00:02]} 15. Nf3 {[%emt 0:02:12]} Rfd8 {[%emt 0:02:00]} 16. Rc1 {[%emt 0:00:46]} Qd6 {[%emt 0:01:24]} 17. Qa4 {[%emt 0:00:01]} Bd5 {[%emt 0:00:26]} 18. Qxa7 {[%emt 0:05:32]} c4 {[%emt 0:01:59]} 19. Be2 {[%emt 0:05:07]} Ra8 {[%emt 0:00:38]} 20. Qc5 {[%emt 0:00:00]} Qxc5 {[%emt 0:00:19]} 21. dxc5 {[%emt 0:00:00]} Rxa2 {[%emt 0:00:01]} 22. Bxc4 {[%emt 0:00:00]} Bxc4 {[%emt 0:00:13]} 23. Rxc4 {[%emt 0:00:00]} Rxb2 {[%emt 0:00:02]} 24. Bc1 {[%emt 0:00:00]} Rb1 {[%emt 0:00:41]} 25. O-O {[%emt 0:00:00]} Rc8 {[%emt 0:00:00]} 26. e4 {[%emt 0:00:00]} b5 {[%emt 0:00:25]} 27. Rd4 {[%emt 0:00:00]} Ne8 {[%emt 0:00:33]} 28. Rd5 {[%emt 0:00:00]} e6 {[%emt 0:00:07]} 29. Rd7 {[%emt 0:00:00]} Rxc5 {[%emt 0:00:08]} 30. Be3 {[%emt 0:00:00]} Rxf1+ {[%emt 0:00:02]} 31. Kxf1 {[%emt 0:00:00]} Rc8 {[%emt 0:00:07]} 32. e5 {[%emt 0:00:00]} Nc7 {[%emt 0:00:12]} 33. Bd2 {[%emt 0:00:00]} h6 {[%emt 0:00:12]} 34. g3 {[%emt 0:00:18]} Bf8 {[%emt 0:00:20]} 35. Nd4 {[%emt 0:00:06]} b4 {[%emt 0:00:02]} 36. Ke2 {[%emt 0:00:27]} Nd5 {[%emt 0:00:10]} 37. Rb7 {[%emt 0:00:04]} Ra8 {[%emt 0:00:01]} 38. Nc6 {[%emt 0:00:24]} Ra2 {[%emt 0:00:10]} 39. Kd3 {[%emt 0:00:06]} Ra3+ {[%emt 0:00:14]} 40. Ke2 {[%emt 0:00:45]} Nc3+ {[%emt 0:00:07]} 41. Kf1 {[%emt 0:00:49]} Ra1+ {[%emt 0:00:28]} 42. Kg2 {[%emt 0:00:12]} Rd1 {[%emt 0:00:06]} 43. Be3 {[%emt 0:00:18]} Nd5 {[%emt 0:00:03]} 44. Rb8 {[%emt 0:00:21]} Nxe3+ {[%emt 0:00:26]} 45. fxe3 {[%emt 0:00:01]} Rb1 {[%emt 0:00:06]} 46. h4 {[%emt 0:00:17]} Kg7 {[%emt 0:00:16]} 47. Rb7 {[%emt 0:00:10]} Rd1 {[%emt 0:00:13]} 48. Nd4 {[%emt 0:00:05]} Kg8 {[%emt 0:00:05]} 49. Rb8 {[%emt 0:00:03]} h5 {[%emt 0:00:03]} 50. Kf3 {[%emt 0:00:01]} Rc1 {[%emt 0:00:14]} 51. Nb5 {[%emt 0:00:27]} Rc5 {[%emt 0:00:16]} 52. Ke4 {[%emt 0:00:15]} Rc4+ {[%emt 0:00:08]} 53. Kf3 {[%emt 0:00:04]} Rc5 {[%emt 0:00:11]} 54. Ke4 {[%emt 0:00:01]} Kg7 {[%emt 0:00:12]} 55. Nd6 {[%emt 0:00:03]} Bxd6 {[%emt 0:00:04]} 56. exd6 {[%emt 0:00:01]} Rd5 {[%emt 0:00:01]} 57. Rxb4 {[%emt 0:00:04]} Rxd6 {[%emt 0:00:02]} 58. Kf3 {[%emt 0:00:04]} Kf6 {[%emt 0:00:04]} 59. Rf4+ {[%emt 0:00:09]} Ke7 {[%emt 0:00:03]} 60. Ra4 {[%emt 0:00:02]} Rd1 {[%emt 0:00:06]} 61. Ra5 {[%emt 0:00:06]} Rf1+ {[%emt 0:00:13]} 62. Kg2 {[%emt 0:00:05]} Rf5 {[%emt 0:00:02]} 63. Ra7+ {[%emt 0:00:06]} Kd6 {[%emt 0:00:47]} 64. e4 {[%emt 0:00:13]} Rf6 {[%emt 0:00:01]} 65. Ra5 {[%emt 0:00:06]} Kc6 {[%emt 0:00:01]} 66. Re5 {[%emt 0:00:11]} Kb6 {[%emt 0:00:02]} 67. Rg5 {[%emt 0:00:05]} Kc6 {[%emt 0:00:06]} 68. Ra5 {[%emt 0:00:02]} Kd7 {[%emt 0:00:06]} 69. Rb5 {[%emt 0:00:10]} Ke7 {[%emt 0:00:15]} 70. Ra5 {[%emt 0:00:05]} e5 {[%emt 0:00:09]} 71. Rxe5+ {[%emt 0:00:04]} Re6 {[%emt 0:00:02]} 72. Ra5 {[%emt 0:00:13]} Rxe4 {[%emt 0:00:01]} 73. Kf3 {[%emt 0:00:05]} Rb4 {[%emt 0:00:02]} 74. Ra6 {[%emt 0:00:02]} Rd4 {[%emt 0:00:03]} 75. Rb6 {[%emt 0:00:04]} Rd6 {[%emt 0:00:01]} 76. Rb5 {[%emt 0:00:04]} Ke6 {[%emt 0:00:01]} 77. Ra5 {[%emt 0:00:01]} Rd3+ {[%emt 0:00:05]} 78. Kf4 {[%emt 0:00:08]} Rd4+ {[%emt 0:00:04]} 79. Kf3 {[%emt 0:00:01]} Rd5 {[%emt 0:00:02]} 80. Ra7 {[%emt 0:00:05]} Rf5+ {[%emt 0:00:46]} 81. Kg2 {[%emt 0:00:04]} Rb5 {[%emt 0:00:36]} 82. Kf3 {[%emt 0:00:06]} f6 {[%emt 0:00:02]} 83. Ra3 {[%emt 0:00:04]} Kf5 {[%emt 0:00:04]} 84. Rc3 {[%emt 0:00:02]} Rd5 {[%emt 0:00:09]} 85. Ra3 {[%emt 0:00:03]} Ke5 {[%emt 0:00:01]} 86. Re3+ {[%emt 0:00:05]} Kf5 {[%emt 0:00:54]} 87. Ra3 {[%emt 0:00:00]} Ke6 {[%emt 0:00:11]} 88. Ra6+ {[%emt 0:00:05]} Rd6 {[%emt 0:00:00]} 89. Ra3 {[%emt 0:00:02]} Rd7 {[%emt 0:00:03]} 90. Ra6+ {[%emt 0:00:02]} Kf7 {[%emt 0:00:00]} 91. Ra3 {[%emt 0:00:01]} Re7 {[%emt 0:00:03]} 92. Ra6 {[%emt 0:00:03]} Kg7 {[%emt 0:00:03]} 93. Rb6 {[%emt 0:00:01]} g5 {[%emt 0:00:36]} 94. hxg5 {[%emt 0:00:06]} fxg5 {[%emt 0:00:01]} 95. Ra6 {[%emt 0:00:13]} Rf7+ {[%emt 0:00:04]} 96. Kg2 {[%emt 0:00:02]} Rf6 {[%emt 0:00:01]} 97. Ra5 {[%emt 0:00:03]} Kg6 {[%emt 0:00:01]} 98. Rb5 {[%emt 0:00:03]} Re6 {[%emt 0:00:01]} 99. Kf3 {[%emt 0:00:08]} Kf6 {[%emt 0:00:03]} 100. Ra5 {[%emt 0:00:05]} Rb6 {[%emt 0:00:44]} 101. Rc5 {[%emt 0:00:10]} Rb3+ {[%emt 0:00:03]} 102. Kg2 {[%emt 0:00:02]} Re3 {[%emt 0:00:03]} 103. Ra5 {[%emt 0:01:08]} Re5 {[%emt 0:00:02]} 104. Ra4 {[%emt 0:00:01]} Rd5 {[%emt 0:00:08]} 105. Ra3 {[%emt 0:01:07]} Kf5 {[%emt 0:00:30]} 106. Kf3 {[%emt 0:00:02]} Ke5 {[%emt 0:00:11]} 107. Re3+ {[%emt 0:00:06]} Kd4 {[%emt 0:00:03]} 108. Re4+ {[%emt 0:00:17]} Kd3 {[%emt 0:00:02]} 109. Re8 {[%emt 0:00:27]} Rf5+ {[%emt 0:00:11]} 110. Kg2 {[%emt 0:00:02]} g4 {[%emt 0:00:02]} 111. Re7 {[%emt 0:00:05]} Kd4 {[%emt 0:00:11]} 112. Ra7 {[%emt 0:00:26]} Rc5 {[%emt 0:00:05]} 113. Rd7+ {[%emt 0:00:29]} Rd5 {[%emt 0:00:14]} 114. Ra7 {[%emt 0:00:03]} Ke3 {[%emt 0:00:10]} 115. Re7+ {[%emt 0:00:04]} Kd3 {[%emt 0:00:04]} 116. Ra7 {[%emt 0:00:05]} Ke4 {[%emt 0:00:54]} 117. Re7+ {[%emt 0:00:02]} Kf5 {[%emt 0:00:18]} 118. Re2 {[%emt 0:00:07]} Rd4 {[%emt 0:00:14]} 119. Rf2+ {[%emt 0:00:08]} Ke5 {[%emt 0:00:06]} 120. Re2+ {[%emt 0:00:04]} Kd5 {[%emt 0:00:04]} 121. Ra2 {[%emt 0:00:54]} Ke4 {[%emt 0:00:06]} 122. Re2+ {[%emt 0:00:04]} Kd5 {[%emt 0:00:11]} 123. Ra2 {[%emt 0:00:02]} Rc4 {[%emt 0:00:10]} 124. Ra5+ {[%emt 0:00:35]} Rc5 {[%emt 0:00:07]} 125. Ra4 {[%emt 0:00:12]} Ke5 {[%emt 0:00:26]} 126. Rf4 {[%emt 0:00:32]} Rd5 {[%emt 0:00:15]} 127. Rf2 {[%emt 0:00:18]} Ke4 {[%emt 0:00:06]} 128. Rf4+ {[%emt 0:00:20]} Ke3 {[%emt 0:00:02]} 129. Rf8 {[%emt 0:00:05]} Rd2+ {[%emt 0:00:09]} 130. Kg1 {[%emt 0:00:01]} Ke2 {[%emt 0:00:30]} 131. Rf2+ {[%emt 0:00:08]} Kd3 {[%emt 0:00:11]} 132. Rf5 {[%emt 0:00:04]} Ke3 {[%emt 0:00:03]} 133. Rxh5 {[%emt 0:00:15]} Kf3 {[%emt 0:00:03]} 134. Ra5 {[%emt 0:00:02]} Rd1+ {[%emt 0:00:18]} 1/2-1/2

[Event "5th CNE NED-ch Rapid 2019"]
[Site "Amstelveen"]
[Date "2019.12.01"]
[Round "6.2"]
[White "Timman, Jan H"]
[Black "Van Foreest, Jorden"]
[Result "1/2-1/2"]
[ECO "D78"]
[WhiteElo "2528"]
[BlackElo "2632"]
[Annotator "ChessBase"]
[PlyCount "24"]
[EventDate "2019.11.30"]
[EventType "tourn"]
[EventCountry "NED"]
[SourceTitle "playchess.com"]
[Source "ChessBase"]
[SourceQuality "1"]
[TimeControl "900+10"]

1. Nf3 {[%emt 0:00:00]} d5 {[%emt 0:00:01]} 2. g3 {[%emt 0:00:00]} g6 {[%emt 0:00:02]} 3. Bg2 {[%emt 0:00:00]} Bg7 {[%emt 0:00:02]} 4. d4 {[%emt 0:00:02]} Nf6 {[%emt 0:00:04]} 5. O-O {[%emt 0:00:13]} O-O {[%emt 0:00:03]} 6. c4 {[%emt 0:00:02]} c6 {[%emt 0:00:02]} 7. Nbd2 {[%emt 0:00:21]} a5 {[%emt 0:00:02]} 8. b3 {[%emt 0:00:13]} a4 {[%emt 0:00:06]} 9. bxa4 {[%emt 0:00:17]} Qa5 {[%emt 0:00:31]} 10. Ba3 {[%emt 0:01:37]} Re8 {[%emt 0:00:02]} 11. Qb3 {[%emt 0:00:43]} Qxa4 {[%emt 0:00:13]} 12. Bb2 {[%emt 0:00:36]} dxc4 {[%emt 0:00:16]} 1/2-1/2

[Event "5th CNE NED-ch Rapid 2019"]
[Site "Amstelveen"]
[Date "2019.12.01"]
[Round "6.3"]
[White "Van Wely, Loek"]
[Black "Reinderman, Dimitri"]
[Result "1/2-1/2"]
[ECO "A96"]
[WhiteElo "2610"]
[BlackElo "2575"]
[Annotator "ChessBase"]
[PlyCount "103"]
[EventDate "2019.11.30"]
[EventType "tourn"]
[EventCountry "NED"]
[SourceTitle "playchess.com"]
[Source "ChessBase"]
[SourceQuality "1"]
[TimeControl "900+10"]

1. d4 {[%emt 0:00:00]} f5 {[%emt 0:00:00]} 2. g3 {[%emt 0:00:00]} Nf6 {[%emt 0:00:00]} 3. Bg2 {[%emt 0:00:00]} e6 {[%emt 0:00:00]} 4. Nf3 {[%emt 0:00:00]} Be7 {[%emt 0:00:00]} 5. O-O {[%emt 0:00:00]} O-O {[%emt 0:00:00]} 6. c4 {[%emt 0:00:00]} d6 {[%emt 0:00:00]} 7. Nc3 {[%emt 0:00:03]} Ne4 {[%emt 0:00:00]} 8. Qc2 {[%emt 0:00:31]} Nxc3 {[%emt 0:00:00]} 9. bxc3 {[%emt 0:00:01]} Nc6 {[%emt 0:00:01]} 10. e4 {[%emt 0:00:04]} e5 {[%emt 0:00:05]} 11. Rb1 {[%emt 0:01:39]} Kh8 {[%emt 0:00:35]} 12. dxe5 {[%emt 0:00:45]} dxe5 {[%emt 0:00:01]} 13. Re1 {[%emt 0:00:37]} f4 {[%emt 0:07:20]} 14. gxf4 {[%emt 0:00:06]} exf4 {[%emt 0:00:01]} 15. Rb5 {[%emt 0:00:42]} Qe8 {[%emt 0:00:53]} 16. Kh1 {[%emt 0:00:34]} a6 {[%emt 0:00:12]} 17. Rd5 {[%emt 0:00:04]} Be6 {[%emt 0:00:21]} 18. c5 {[%emt 0:01:06]} Qg6 {[%emt 0:00:38]} 19. c4 {[%emt 0:00:03]} Rae8 {[%emt 0:01:29]} 20. Rg1 {[%emt 0:01:11]} Nb4 {[%emt 0:01:16]} 21. Qd2 {[%emt 0:01:33]} Bxd5 {[%emt 0:01:24]} 22. cxd5 {[%emt 0:00:46]} Bxc5 {[%emt 0:00:10]} 23. a3 {[%emt 0:00:32]} Bxf2 {[%emt 0:00:44]} 24. Qxf2 {[%emt 0:00:36]} Nd3 {[%emt 0:00:03]} 25. Qc2 {[%emt 0:02:01]} Qxe4 {[%emt 0:00:22]} 26. Rd1 {[%emt 0:00:50]} Nxc1 {[%emt 0:00:29]} 27. Qxc1 {[%emt 0:00:02]} Qe7 {[%emt 0:00:17]} 28. h3 {[%emt 0:01:48]} Qd7 {[%emt 0:00:25]} 29. Qb1 {[%emt 0:00:17]} Re3 {[%emt 0:00:18]} 30. Kh2 {[%emt 0:00:49]} b6 {[%emt 0:00:13]} 31. Qb4 {[%emt 0:00:08]} Qd6 {[%emt 0:00:10]} 32. Qxd6 {[%emt 0:00:28]} cxd6 {[%emt 0:00:01]} 33. a4 {[%emt 0:00:01]} b5 {[%emt 0:00:34]} 34. axb5 {[%emt 0:00:04]} axb5 {[%emt 0:00:00]} 35. Rb1 {[%emt 0:00:02]} Rb8 {[%emt 0:00:01]} 36. Rb4 {[%emt 0:00:55]} Rc3 {[%emt 0:00:27]} 37. Nd4 {[%emt 0:00:04]} g5 {[%emt 0:00:31]} 38. Rxb5 {[%emt 0:00:09]} Ra8 {[%emt 0:01:25]} 39. Rb2 {[%emt 0:00:10]} h5 {[%emt 0:00:29]} 40. Rf2 {[%emt 0:00:44]} Kh7 {[%emt 0:00:28]} 41. h4 {[%emt 0:00:56]} gxh4 {[%emt 0:00:02]} 42. Nb5 {[%emt 0:00:42]} Rb3 {[%emt 0:00:14]} 43. Nxd6 {[%emt 0:00:02]} Kg6 {[%emt 0:00:09]} 44. Nc4 {[%emt 0:00:37]} Ra4 {[%emt 0:00:07]} 45. Rxf4 {[%emt 0:00:15]} Kg5 {[%emt 0:00:04]} 46. Re4 {[%emt 0:00:12]} Ra2 {[%emt 0:00:10]} 47. Ne3 {[%emt 0:00:03]} Re2 {[%emt 0:00:05]} 48. Nc4 {[%emt 0:00:20]} Rxe4 {[%emt 0:00:09]} 49. Bxe4 {[%emt 0:00:00]} Kf4 {[%emt 0:00:01]} 50. Bg2 {[%emt 0:00:06]} Rc3 {[%emt 0:00:03]} 51. Nd2 {[%emt 0:00:15]} Rd3 {[%emt 0:00:06]} 52. Nf3 {[%emt 0:00:47] Ke5} 1/2-1/2

[Event "5th CNE NED-ch Rapid 2019"]
[Site "Amstelveen"]
[Date "2019.12.01"]
[Round "6.4"]
[White "Van den Doel, Erik"]
[Black "Pruijssers, Roeland"]
[Result "1/2-1/2"]
[ECO "B01"]
[WhiteElo "2598"]
[BlackElo "2557"]
[Annotator "ChessBase"]
[PlyCount "120"]
[EventDate "2019.11.30"]
[EventType "tourn"]
[EventCountry "NED"]
[SourceTitle "playchess.com"]
[Source "ChessBase"]
[SourceQuality "1"]
[TimeControl "900+10"]

1. e4 {[%emt 0:15:10]} d5 {[%emt 0:00:00]} 2. exd5 {[%emt 0:00:00]} Qxd5 {[%emt 0:00:00]} 3. Nc3 {[%emt 0:00:00]} Qa5 {[%emt 0:00:00]} 4. d4 {[%emt 0:00:00]} Nf6 {[%emt 0:00:00]} 5. Bd2 {[%emt 0:00:00]} Bg4 {[%emt 0:00:05]} 6. f3 {[%emt 0:00:00]} Bd7 {[%emt 0:00:06]} 7. Bc4 {[%emt 0:00:00]} Qb6 {[%emt 0:00:17]} 8. Nge2 {[%emt 0:00:00]} e6 {[%emt 0:01:26]} 9. Be3 {[%emt 0:00:00]} c5 {[%emt 0:00:53]} 10. d5 {[%emt 0:00:00]} exd5 {[%emt 0:00:05]} 11. Nxd5 {[%emt 0:00:00]} Nxd5 {[%emt 0:00:14]} 12. Bxd5 {[%emt 0:00:00]} Be7 {[%emt 0:00:07]} 13. O-O {[%emt 0:00:00]} O-O {[%emt 0:00:03]} 14. c3 {[%emt 0:00:00]} Be6 {[%emt 0:03:15]} 15. Bxe6 {[%emt 0:00:00]} Qxe6 {[%emt 0:00:09]} 16. Bf2 {[%emt 0:00:00]} Nc6 {[%emt 0:01:02]} 17. Nf4 {[%emt 0:00:00]} Qc4 {[%emt 0:00:03]} 18. Nd5 {[%emt 0:00:00]} Rad8 {[%emt 0:00:08]} 19. Nxe7+ {[%emt 0:00:00]} Nxe7 {[%emt 0:00:02]} 20. Qb3 {[%emt 0:00:00]} Qd5 {[%emt 0:01:10]} 21. Qxd5 {[%emt 0:00:00]} Rxd5 {[%emt 0:00:03]} 22. c4 {[%emt 0:00:00]} Rf5 {[%emt 0:00:05]} 23. Rad1 {[%emt 0:00:00]} b6 {[%emt 0:01:04]} 24. Rd7 {[%emt 0:00:00]} Nc6 {[%emt 0:00:01]} 25. Re1 {[%emt 0:00:00]} h5 {[%emt 0:02:30]} 26. b3 {[%emt 0:00:00]} Rc8 {[%emt 0:01:00]} 27. Kf1 {[%emt 0:00:00]} g6 {[%emt 0:01:15]} 28. h3 {[%emt 0:00:00]} Kf8 {[%emt 0:00:10]} 29. Bh4 {[%emt 0:00:31]} g5 {[%emt 0:00:27]} 30. Bg3 {[%emt 0:00:04]} Kg7 {[%emt 0:01:38]} 31. Re4 {[%emt 0:00:13]} Rd8 {[%emt 0:00:38]} 32. Rxd8 {[%emt 0:01:51]} Nxd8 {[%emt 0:00:02]} 33. Be5+ {[%emt 0:00:33]} Kg6 {[%emt 0:00:21]} 34. Ke2 {[%emt 0:00:13]} Nc6 {[%emt 0:00:29]} 35. Bc3 {[%emt 0:00:02]} h4 {[%emt 0:00:58]} 36. Ke3 {[%emt 0:00:07]} Nb4 {[%emt 0:00:08]} 37. Bxb4 {[%emt 0:00:40]} cxb4 {[%emt 0:00:04]} 38. Re7 {[%emt 0:01:56]} Ra5 {[%emt 0:00:06]} 39. f4 {[%emt 0:00:00]} gxf4+ {[%emt 0:00:35]} 40. Kxf4 {[%emt 0:00:00]} Rxa2 {[%emt 0:00:02]} 41. g3 {[%emt 0:00:07]} hxg3 {[%emt 0:00:31]} 42. Kxg3 {[%emt 0:00:02]} Ra3 {[%emt 0:00:03]} 43. Kg2 {[%emt 0:00:10]} a5 {[%emt 0:00:26]} 44. Rb7 {[%emt 0:00:01]} Rxb3 {[%emt 0:00:03]} 45. Rxb6+ {[%emt 0:00:01]} f6 {[%emt 0:00:25]} 46. Ra6 {[%emt 0:00:05]} Ra3 {[%emt 0:00:06]} 47. c5 {[%emt 0:00:02]} b3 {[%emt 0:00:09]} 48. c6 {[%emt 0:00:08]} a4 {[%emt 0:00:21]} 49. c7 {[%emt 0:00:21]} Ra2+ {[%emt 0:00:01]} 50. Kf3 {[%emt 0:00:33]} Rc2 {[%emt 0:00:04]} 51. Rxa4 {[%emt 0:00:02]} Rxc7 {[%emt 0:00:10]} 52. Rb4 {[%emt 0:00:01]} Rc3+ {[%emt 0:00:04]} 53. Kg4 {[%emt 0:00:14]} Kf7 {[%emt 0:00:07]} 54. h4 {[%emt 0:00:06]} Ke6 {[%emt 0:00:04]} 55. h5 {[%emt 0:00:11]} f5+ {[%emt 0:00:02]} 56. Kf4 {[%emt 0:00:08]} Rh3 {[%emt 0:00:11]} 57. Rb6+ {[%emt 0:00:24]} Kd5 {[%emt 0:00:04]} 58. Kxf5 {[%emt 0:00:01]} Kc4 {[%emt 0:00:22]} 59. h6 {[%emt 0:00:08]} Kc3 {[%emt 0:00:27]} 60. Kg6 {[%emt 0:00:14]} b2 {[%emt 0:00:25]} 1/2-1/2

[Event "5th CNE NED-ch Rapid 2019"]
[Site "Amstelveen"]
[Date "2019.12.01"]
[Round "7.1"]
[White "Reinderman, Dimitri"]
[Black "Van den Doel, Erik"]
[Result "1/2-1/2"]
[ECO "A11"]
[WhiteElo "2575"]
[BlackElo "2598"]
[Annotator "ChessBase"]
[PlyCount "62"]
[EventDate "2019.11.30"]
[EventType "tourn"]
[EventCountry "NED"]
[SourceTitle "playchess.com"]
[Source "ChessBase"]
[SourceQuality "1"]
[TimeControl "900+10"]

1. c4 {[%emt 0:00:00]} c6 {[%emt 0:15:10]} 2. Nf3 {[%emt 0:00:00]} d5 {[%emt 0:00:00]} 3. g3 {[%emt 0:00:00]} Bg4 {[%emt 0:00:00]} 4. Bg2 {[%emt 0:00:01]} e6 {[%emt 0:00:00]} 5. O-O {[%emt 0:00:05]} Nd7 {[%emt 0:00:00]} 6. cxd5 {[%emt 0:00:10]} exd5 {[%emt 0:00:00]} 7. d3 {[%emt 0:00:04]} Bd6 {[%emt 0:00:00]} 8. e4 {[%emt 0:01:05]} Ne7 {[%emt 0:00:00]} 9. h3 {[%emt 0:00:13]} Bh5 {[%emt 0:00:00]} 10. Nc3 {[%emt 0:00:25]} O-O {[%emt 0:00:00]} 11. g4 {[%emt 0:01:27]} Bg6 {[%emt 0:00:00]} 12. Nh4 {[%emt 0:00:02]} dxe4 {[%emt 0:00:00]} 13. dxe4 {[%emt 0:00:02]} Ne5 {[%emt 0:00:00]} 14. f4 {[%emt 0:01:20]} Nc8 {[%emt 0:00:00]} 15. Nxg6 {[%emt 0:01:00]} Nxg6 {[%emt 0:00:00]} 16. e5 {[%emt 0:00:03]} Bc5+ {[%emt 0:00:00]} 17. Kh2 {[%emt 0:00:01]} Nb6 {[%emt 0:00:00]} 18. Qe2 {[%emt 0:04:38]} Qc7 {[%emt 0:00:00]} 19. Bd2 {[%emt 0:00:27]} Rad8 {[%emt 0:00:00]} 20. Be1 {[%emt 0:00:23]} f6 {[%emt 0:00:00]} 21. Bg3 {[%emt 0:00:53]} fxe5 {[%emt 0:00:00]} 22. fxe5 {[%emt 0:00:02]} Rde8 {[%emt 0:00:00]} 23. Rxf8+ {[%emt 0:01:08]} Bxf8 {[%emt 0:00:00]} 24. Re1 {[%emt 0:00:11]} Nxe5 {[%emt 0:00:00]} 25. Qd1 {[%emt 0:01:26]} Nbd7 {[%emt 0:00:00]} 26. Ne4 {[%emt 0:00:26]} Qb6 {[%emt 0:00:00]} 27. Qc2 {[%emt 0:00:26]} Be7 {[%emt 0:00:00]} 28. Nc3 {[%emt 0:00:29]} Bd6 {[%emt 0:00:00]} 29. Ne4 {[%emt 0:00:01]} Be7 {[%emt 0:00:00]} 30. Nc3 {[%emt 0:00:01]} Bd6 {[%emt 0:00:14]} 31. Ne4 {[%emt 0:00:01]} Be7 {[%emt 0:01:03]} 1/2-1/2

[Event "5th CNE NED-ch Rapid 2019"]
[Site "Amstelveen"]
[Date "2019.12.01"]
[Round "7.2"]
[White "Smeets, Jan"]
[Black "Timman, Jan H"]
[Result "1/2-1/2"]
[ECO "C71"]
[WhiteElo "2596"]
[BlackElo "2528"]
[Annotator "ChessBase"]
[PlyCount "21"]
[EventDate "2019.11.30"]
[EventType "tourn"]
[EventCountry "NED"]
[SourceTitle "playchess.com"]
[Source "ChessBase"]
[SourceQuality "1"]
[TimeControl "900+10"]

1. e4 {[%emt 0:00:00]} e5 {[%emt 0:00:00]} 2. Nf3 {[%emt 0:00:00]} Nc6 {[%emt 0:00:00]} 3. Bb5 {[%emt 0:00:00]} a6 {[%emt 0:00:00]} 4. Ba4 {[%emt 0:00:00]} d6 {[%emt 0:00:00]} 5. c4 {[%emt 0:00:37]} Nf6 {[%emt 0:00:18]} 6. Nc3 {[%emt 0:00:06]} Be7 {[%emt 0:01:39]} 7. d4 {[%emt 0:00:09]} exd4 {[%emt 0:00:15]} 8. Nxd4 {[%emt 0:00:04]} Bd7 {[%emt 0:00:04]} 9. Nxc6 {[%emt 0:02:12]} bxc6 {[%emt 0:00:03]} 10. Bf4 {[%emt 0:00:19]} O-O {[%emt 0:00:28]} 11. O-O {[%emt 0:01:43]} 1/2-1/2

[Event "5th CNE NED-ch Rapid 2019"]
[Site "Amstelveen"]
[Date "2019.12.01"]
[Round "7.3"]
[White "Pruijssers, Roeland"]
[Black "Ernst, Sipke"]
[Result "1/2-1/2"]
[ECO "C90"]
[WhiteElo "2557"]
[BlackElo "2553"]
[Annotator "ChessBase"]
[PlyCount "31"]
[EventDate "2019.11.30"]
[EventType "tourn"]
[EventCountry "NED"]
[SourceTitle "playchess.com"]
[Source "ChessBase"]
[SourceQuality "1"]
[TimeControl "900+10"]

1. e4 {[%emt 0:00:00]} e5 {[%emt 0:00:00]} 2. Nf3 {[%emt 0:00:00]} Nc6 {[%emt 0:00:00]} 3. Bb5 {[%emt 0:00:00]} a6 {[%emt 0:00:00]} 4. Ba4 {[%emt 0:00:00]} Nf6 {[%emt 0:00:00]} 5. d3 {[%emt 0:00:00]} b5 {[%emt 0:00:03]} 6. Bb3 {[%emt 0:00:05]} Be7 {[%emt 0:00:05]} 7. O-O {[%emt 0:00:46]} O-O {[%emt 0:00:04]} 8. c3 {[%emt 0:00:40]} d6 {[%emt 0:00:15]} 9. h3 {[%emt 0:00:09]} Na5 {[%emt 0:00:07]} 10. Bc2 {[%emt 0:00:03]} c5 {[%emt 0:00:02]} 11. Re1 {[%emt 0:00:07]} Re8 {[%emt 0:00:19]} 12. Nbd2 {[%emt 0:00:03]} Bf8 {[%emt 0:00:05]} 13. Nf1 {[%emt 0:00:07]} g6 {[%emt 0:00:29]} 14. Ng3 {[%emt 0:00:17]} Nc6 {[%emt 0:00:16]} 15. Bg5 {[%emt 0:00:12]} h6 {[%emt 0:00:22]} 16. Bd2 {[%emt 0:00:41]} 1/2-1/2

[Event "5th CNE NED-ch Rapid 2019"]
[Site "Amstelveen"]
[Date "2019.12.01"]
[Round "7.4"]
[White "Van Foreest, Jorden"]
[Black "Van Wely, Loek"]
[Result "1/2-1/2"]
[ECO "B44"]
[WhiteElo "2632"]
[BlackElo "2610"]
[Annotator "ChessBase"]
[PlyCount "45"]
[EventDate "2019.11.30"]
[EventType "tourn"]
[EventCountry "NED"]
[SourceTitle "playchess.com"]
[Source "ChessBase"]
[SourceQuality "1"]
[TimeControl "900+10"]

1. e4 {[%emt 0:00:00]} c5 {[%emt 0:00:00]} 2. Nf3 {[%emt 0:00:00]} e6 {[%emt 0:00:00]} 3. g3 {[%emt 0:00:08]} Nc6 {[%emt 0:00:03]} 4. d4 {[%emt 0:00:30]} cxd4 {[%emt 0:00:19]} 5. Nxd4 {[%emt 0:00:02]} Bc5 {[%emt 0:02:15]} 6. Nb3 {[%emt 0:00:09]} Be7 {[%emt 0:00:21]} 7. Bg2 {[%emt 0:00:06]} Nf6 {[%emt 0:00:03]} 8. O-O {[%emt 0:00:13]} O-O {[%emt 0:00:03]} 9. Nc3 {[%emt 0:01:01]} d6 {[%emt 0:00:10]} 10. Be3 {[%emt 0:00:54]} Nd7 {[%emt 0:00:23]} 11. Qe2 {[%emt 0:00:13]} a6 {[%emt 0:00:07]} 12. Rad1 {[%emt 0:01:16]} Qc7 {[%emt 0:00:02]} 13. a4 {[%emt 0:01:07]} b6 {[%emt 0:00:03]} 14. f4 {[%emt 0:00:08]} Re8 {[%emt 0:00:16]} 15. g4 {[%emt 0:00:32]} Bb7 {[%emt 0:00:03]} 16. g5 {[%emt 0:00:11]} Bf8 {[%emt 0:00:12]} 17. Rf3 {[%emt 0:00:40]} g6 {[%emt 0:00:08]} 18. Rh3 {[%emt 0:00:09]} Rac8 {[%emt 0:01:00]} 19. Qf2 {[%emt 0:00:12]} Bg7 {[%emt 0:00:03]} 20. Qh4 {[%emt 0:00:14]} Nf8 {[%emt 0:00:09]} 21. Qf2 {[%emt 0:00:01]} Nd7 {[%emt 0:00:02]} 22. Qh4 {[%emt 0:01:57]} Nf8 {[%emt 0:00:03]} 23. Qf2 {[%emt 0:00:03]} 1/2-1/2